[Event "Titled Tuesday Blitz June 29 2021"]
[White "viditchess"]
[Black "ChessQueen"]
[WhiteElo "3051"]
[BlackElo "2666"]
[Result "1-0"]
[Round "03"]
[TimeControl "180+1"]
[Date "2021.06.29"]
[WhiteClock "0:00:15"]
[BlackClock "0:00:05"]

1. Nf3 {[%clk 0:03:00]}  Nf6 {[%clk 0:02:59]} 2. c4 {[%clk 0:03:00]}  c5 {[%clk 0:02:58]} 3. Nc3 {[%clk 0:03:00]}  Nc6 {[%clk 0:02:58]} 4. e3 {[%clk 0:02:59]}  e6 {[%clk 0:02:58]} 5. d4 {[%clk 0:02:59]}  d5 {[%clk 0:02:58]} 6. a3 {[%clk 0:02:54]}  a6 {[%clk 0:02:58]} 7. dxc5 {[%clk 0:02:47]}  Bxc5 {[%clk 0:02:58]} 8. b4 {[%clk 0:02:47]}  Ba7 {[%clk 0:02:49]} 9. Bb2 {[%clk 0:02:47]}  O-O {[%clk 0:02:48]} 10. Qc2 {[%clk 0:02:41]}  dxc4 {[%clk 0:02:40]} 11. Bxc4 {[%clk 0:02:40]}  e5 {[%clk 0:02:39]} 12. Rd1 {[%clk 0:02:31]}  Qe7 {[%clk 0:02:17]} 13. Ng5 {[%clk 0:02:24]}  g6 {[%clk 0:02:12]} 14. O-O {[%clk 0:02:04]}  Bg4 {[%clk 0:02:06]} 15. Rd2 {[%clk 0:02:00]}  Rad8 {[%clk 0:01:42]} 16. Rxd8 {[%clk 0:01:56]}  Nxd8 {[%clk 0:01:42]} 17. Nge4 {[%clk 0:01:42]}  Nxe4 {[%clk 0:01:34]} 18. Qxe4 {[%clk 0:01:31]}  Bf5 {[%clk 0:01:22]} 19. Nd5 {[%clk 0:01:30]}  Bxe4 {[%clk 0:01:21]} 20. Nxe7+ {[%clk 0:01:30]}  Kg7 {[%clk 0:01:22]} 21. Bxe5+ {[%clk 0:01:31]}  f6 {[%clk 0:01:23]} 22. Bb2 {[%clk 0:01:29]}  Nc6 {[%clk 0:01:23]} 23. Nxc6 {[%clk 0:01:10]}  Bxc6 {[%clk 0:01:23]} 24. Rd1 {[%clk 0:01:07]}  Bb8 {[%clk 0:01:21]} 25. h3 {[%clk 0:00:54]}  Ba4 {[%clk 0:01:18]} 26. Rd2 {[%clk 0:00:52]}  Rc8 {[%clk 0:01:18]} 27. Be6 {[%clk 0:00:48]}  Re8 {[%clk 0:01:15]} 28. Bg4 {[%clk 0:00:44]}  Bc6 {[%clk 0:01:12]} 29. Be2 {[%clk 0:00:38]}  Be5 {[%clk 0:01:06]} 30. Bxe5 {[%clk 0:00:37]}  Rxe5 {[%clk 0:01:05]} 31. Kf1 {[%clk 0:00:32]}  Re7 {[%clk 0:01:03]} 32. g3 {[%clk 0:00:26]}  f5 {[%clk 0:01:03]} 33. Ke1 {[%clk 0:00:25]}  Kf6 {[%clk 0:01:03]} 34. h4 {[%clk 0:00:23]}  Ke5 {[%clk 0:01:00]} 35. Rd4 {[%clk 0:00:23]}  Rc7 {[%clk 0:00:55]} 36. Kd2 {[%clk 0:00:24]}  Bd5 {[%clk 0:00:48]} 37. Bd3 {[%clk 0:00:23]}  b5 {[%clk 0:00:46]} 38. g4 {[%clk 0:00:20]}  Bb7 {[%clk 0:00:35]} 39. g5 {[%clk 0:00:20]}  Bd5 {[%clk 0:00:33]} 40. f4+ {[%clk 0:00:19]}  Ke6 {[%clk 0:00:33]} 41. h5 {[%clk 0:00:19]}  Rc8 {[%clk 0:00:30]} 42. h6 {[%clk 0:00:19]}  Rc7 {[%clk 0:00:30]} 43. Be2 {[%clk 0:00:19]}  Be4 {[%clk 0:00:28]} 44. Bd1 {[%clk 0:00:20]}  Bd5 {[%clk 0:00:27]} 45. Bc2 {[%clk 0:00:20]}  Rc8 {[%clk 0:00:26]} 46. a4 {[%clk 0:00:20]}  Rc7 {[%clk 0:00:25]} 47. axb5 {[%clk 0:00:20]}  axb5 {[%clk 0:00:26]} 48. Bd3 {[%clk 0:00:21]}  Bc6 {[%clk 0:00:21]} 49. Ke2 {[%clk 0:00:20]}  Ra7 {[%clk 0:00:20]} 50. Rd8 {[%clk 0:00:20]}  Ra2+ {[%clk 0:00:18]} 51. Ke1 {[%clk 0:00:20]}  Ra3 {[%clk 0:00:13]} 52. Kd2 {[%clk 0:00:20]}  Ra2+ {[%clk 0:00:05]} 53. Kc1 {[%clk 0:00:21]}  Ra4 {[%clk 0:00:04]} 54. Rh8 {[%clk 0:00:20]}  Ra7 {[%clk 0:00:04]} 55. Kb2 {[%clk 0:00:18]}  Rd7 {[%clk 0:00:04]} 56. Bc2 {[%clk 0:00:18]}  Rd2 {[%clk 0:00:03]} 57. Kc3 {[%clk 0:00:18]}  Rd7 {[%clk 0:00:03]} 58. Bb3+ {[%clk 0:00:18]}  Kd6 {[%clk 0:00:03]} 59. Bg8 {[%clk 0:00:17]}  Re7 {[%clk 0:00:03]} 60. Rxh7 {[%clk 0:00:17]}  Rxe3+ {[%clk 0:00:04]} 61. Kd2 {[%clk 0:00:16]}  Rh3 {[%clk 0:00:04]} 62. Rg7 {[%clk 0:00:16]}  Rh2+ {[%clk 0:00:04]} 63. Ke3 {[%clk 0:00:14]}  Rh3+ {[%clk 0:00:04]} 64. Kf2 {[%clk 0:00:15]}  Rf3+ {[%clk 0:00:04]} 65. Ke1 {[%clk 0:00:14]}  Rxf4 {[%clk 0:00:04]} 66. h7 {[%clk 0:00:14]}  Rh4 {[%clk 0:00:04]} 67. Rxg6+ {[%clk 0:00:15]}  Ke5 {[%clk 0:00:05]} 68. Rh6 {[%clk 0:00:15]} 1-0


[Site "https://www.chess.com"]

[Event "Titled Tuesday Blitz June 29 2021"]
[White "Alexander_Moskalenko"]
[Black "NikolaGry"]
[WhiteElo "2911"]
[BlackElo "2637"]
[Result "1-0"]
[Round "04"]
[TimeControl "180+1"]
[Date "2021.06.29"]
[WhiteClock "0:01:07"]
[BlackClock "0:00:06"]

1. d4 {[%clk 0:03:00]}  d5 {[%clk 0:02:59]} 2. Nc3 {[%clk 0:03:01]}  Nc6 {[%clk 0:03:00]} 3. e4 {[%clk 0:03:00]}  Nf6 {[%clk 0:02:56]} 4. e5 {[%clk 0:02:56]}  Nd7 {[%clk 0:02:55]} 5. f4 {[%clk 0:02:54]}  Nb6 {[%clk 0:02:54]} 6. Nf3 {[%clk 0:02:55]}  Bg4 {[%clk 0:02:49]} 7. Bb5 {[%clk 0:02:55]}  e6 {[%clk 0:02:41]} 8. O-O {[%clk 0:02:54]}  g6 {[%clk 0:02:33]} 9. h3 {[%clk 0:02:54]}  Bxf3 {[%clk 0:02:33]} 10. Qxf3 {[%clk 0:02:55]}  h5 {[%clk 0:02:27]} 11. Be3 {[%clk 0:02:44]}  Qd7 {[%clk 0:02:24]} 12. Bf2 {[%clk 0:02:38]}  a6 {[%clk 0:02:21]} 13. Bd3 {[%clk 0:02:36]}  Nb4 {[%clk 0:02:16]} 14. a3 {[%clk 0:02:36]}  Nxd3 {[%clk 0:02:15]} 15. Qxd3 {[%clk 0:02:27]}  Be7 {[%clk 0:02:12]} 16. a4 {[%clk 0:02:27]}  Qc6 {[%clk 0:02:03]} 17. b3 {[%clk 0:02:27]}  h4 {[%clk 0:01:57]} 18. Ne2 {[%clk 0:02:28]}  Nc8 {[%clk 0:01:45]} 19. Kh1 {[%clk 0:02:29]}  Bd8 {[%clk 0:01:44]} 20. Ng1 {[%clk 0:02:29]}  Ne7 {[%clk 0:01:44]} 21. Nf3 {[%clk 0:02:28]}  Nf5 {[%clk 0:01:44]} 22. c4 {[%clk 0:02:29]}  Qd7 {[%clk 0:01:36]} 23. c5 {[%clk 0:02:24]}  Kf8 {[%clk 0:01:34]} 24. b4 {[%clk 0:02:24]}  Kg7 {[%clk 0:01:26]} 25. b5 {[%clk 0:02:11]}  axb5 {[%clk 0:01:25]} 26. axb5 {[%clk 0:02:12]}  Be7 {[%clk 0:01:25]} 27. Qb3 {[%clk 0:02:07]}  Rhb8 {[%clk 0:01:19]} 28. Ra4 {[%clk 0:02:01]}  Rxa4 {[%clk 0:00:53]} 29. Qxa4 {[%clk 0:02:02]}  Qe8 {[%clk 0:00:50]} 30. Ra1 {[%clk 0:02:01]}  Ng3+ {[%clk 0:00:47]} 31. Bxg3 {[%clk 0:02:01]}  hxg3 {[%clk 0:00:47]} 32. Kg1 {[%clk 0:02:02]}  Rd8 {[%clk 0:00:38]} 33. Qa5 {[%clk 0:01:59]}  Rc8 {[%clk 0:00:36]} 34. Kf1 {[%clk 0:01:53]}  Qh8 {[%clk 0:00:27]} 35. Qa7 {[%clk 0:01:50]}  Qh6 {[%clk 0:00:19]} 36. Qxb7 {[%clk 0:01:49]}  Re8 {[%clk 0:00:16]} 37. Qc6 {[%clk 0:01:40]}  Kf8 {[%clk 0:00:12]} 38. Ra8 {[%clk 0:01:37]}  Rxa8 {[%clk 0:00:12]} 39. Qxa8+ {[%clk 0:01:36]}  Kg7 {[%clk 0:00:12]} 40. Qa5 {[%clk 0:01:10]}  Qxf4 {[%clk 0:00:11]} 41. Qd2 {[%clk 0:01:11]}  Qe4 {[%clk 0:00:10]} 42. Qe1 {[%clk 0:01:11]}  Qd3+ {[%clk 0:00:10]} 43. Kg1 {[%clk 0:01:12]}  Qxb5 {[%clk 0:00:09]} 44. Qxg3 {[%clk 0:01:13]}  Qc4 {[%clk 0:00:09]} 45. Qg4 {[%clk 0:01:13]}  Qd3 {[%clk 0:00:09]} 46. Kh2 {[%clk 0:01:12]}  c6 {[%clk 0:00:09]} 47. h4 {[%clk 0:01:12]}  Qf5 {[%clk 0:00:09]} 48. Qxf5 {[%clk 0:01:11]}  exf5 {[%clk 0:00:09]} 49. Kg3 {[%clk 0:01:11]}  f6 {[%clk 0:00:07]} 50. Kf4 {[%clk 0:01:09]}  Kf7 {[%clk 0:00:07]} 51. exf6 {[%clk 0:01:07]}  Bxf6 {[%clk 0:00:06]} 52. Ne5+ {[%clk 0:01:07]}  Bxe5+ {[%clk 0:00:06]} 53. Kxe5 {[%clk 0:01:07]} 1-0


[Site "https://www.chess.com"]

[Event "Titled Tuesday Blitz June 29 2021"]
[White "Arseniy_Nesterov"]
[Black "heartandgold"]
[WhiteElo "2814"]
[BlackElo "2519"]
[Result "1-0"]
[Round "04"]
[TimeControl "180+1"]
[Date "2021.06.29"]
[WhiteClock "0:02:06"]
[BlackClock "0:01:12"]

1. d4 {[%clk 0:03:00]}  d5 {[%clk 0:02:59]} 2. c4 {[%clk 0:03:00]}  c6 {[%clk 0:02:59]} 3. Nf3 {[%clk 0:03:00]}  Nf6 {[%clk 0:02:59]} 4. e3 {[%clk 0:02:58]}  Bf5 {[%clk 0:02:59]} 5. Nc3 {[%clk 0:02:58]}  e6 {[%clk 0:02:58]} 6. Be2 {[%clk 0:02:56]}  Be7 {[%clk 0:02:53]} 7. O-O {[%clk 0:02:54]}  h6 {[%clk 0:02:48]} 8. Bd3 {[%clk 0:02:54]}  Bxd3 {[%clk 0:02:39]} 9. Qxd3 {[%clk 0:02:54]}  O-O {[%clk 0:02:38]} 10. b3 {[%clk 0:02:54]}  a5 {[%clk 0:02:34]} 11. e4 {[%clk 0:02:43]}  dxe4 {[%clk 0:02:32]} 12. Nxe4 {[%clk 0:02:44]}  Nxe4 {[%clk 0:02:32]} 13. Qxe4 {[%clk 0:02:45]}  Nd7 {[%clk 0:02:22]} 14. Bf4 {[%clk 0:02:44]}  Re8 {[%clk 0:02:11]} 15. Rad1 {[%clk 0:02:42]}  Qb6 {[%clk 0:02:10]} 16. Ne5 {[%clk 0:02:38]}  Nf6 {[%clk 0:02:04]} 17. Qe3 {[%clk 0:02:30]}  Rad8 {[%clk 0:01:59]} 18. Rd3 {[%clk 0:02:26]}  a4 {[%clk 0:01:41]} 19. Bxh6 {[%clk 0:02:15]}  gxh6 {[%clk 0:01:12]} 20. Qxh6 {[%clk 0:02:06]} 1-0


[Site "https://www.chess.com"]

[Event "Titled Tuesday Blitz June 29 2021"]
[White "DeTimmerman"]
[Black "Grischuk"]
[WhiteElo "2794"]
[BlackElo "3085"]
[Result "1-0"]
[Round "04"]
[TimeControl "180+1"]
[Date "2021.06.29"]
[WhiteClock "0:00:22"]
[BlackClock "0:00:12"]

1. b4 {[%clk 0:03:00]}  e5 {[%clk 0:02:54]} 2. Bb2 {[%clk 0:03:01]}  Bxb4 {[%clk 0:02:55]} 3. Bxe5 {[%clk 0:03:02]}  Nf6 {[%clk 0:02:55]} 4. Nc3 {[%clk 0:03:02]}  Ba5 {[%clk 0:02:53]} 5. e3 {[%clk 0:03:00]}  O-O {[%clk 0:02:53]} 6. Nf3 {[%clk 0:03:00]}  Re8 {[%clk 0:02:54]} 7. Bxf6 {[%clk 0:03:00]}  Qxf6 {[%clk 0:02:53]} 8. Nd5 {[%clk 0:03:00]}  Qd8 {[%clk 0:02:50]} 9. c4 {[%clk 0:02:59]}  c6 {[%clk 0:02:48]} 10. Nf4 {[%clk 0:03:00]}  Bc7 {[%clk 0:02:46]} 11. Nh5 {[%clk 0:02:59]}  g6 {[%clk 0:02:41]} 12. Ng3 {[%clk 0:02:59]}  h5 {[%clk 0:02:40]} 13. Bd3 {[%clk 0:02:53]}  Na6 {[%clk 0:02:28]} 14. Rc1 {[%clk 0:02:22]}  d5 {[%clk 0:02:19]} 15. cxd5 {[%clk 0:02:21]}  Nb4 {[%clk 0:02:20]} 16. Bb1 {[%clk 0:02:21]}  Nxd5 {[%clk 0:02:12]} 17. Ne4 {[%clk 0:02:07]}  Nb4 {[%clk 0:01:55]} 18. O-O {[%clk 0:02:05]}  Nxa2 {[%clk 0:01:04]} 19. Rc4 {[%clk 0:02:00]}  Be6 {[%clk 0:01:04]} 20. Rd4 {[%clk 0:01:53]}  Qe7 {[%clk 0:01:04]} 21. Qa4 {[%clk 0:01:17]}  b5 {[%clk 0:00:41]} 22. Qa6 {[%clk 0:01:08]}  Bb6 {[%clk 0:00:38]} 23. Rd6 {[%clk 0:00:41]}  Nb4 {[%clk 0:00:29]} 24. Qa1 {[%clk 0:00:32]}  f5 {[%clk 0:00:18]} 25. Nf6+ {[%clk 0:00:22]}  Kf8 {[%clk 0:00:17]} 26. Nxe8 {[%clk 0:00:23]}  Rxe8 {[%clk 0:00:12]} 27. Qh8+ {[%clk 0:00:22]}  Kf7 {[%clk 0:00:12]} 28. Ne5# {[%clk 0:00:22]} 1-0


[Site "https://www.chess.com"]

[Event "Titled Tuesday Blitz June 29 2021"]
[White "DenLaz"]
[Black "Tayson_7"]
[WhiteElo "2853"]
[BlackElo "2623"]
[Result "1/2-1/2"]
[Round "04"]
[TimeControl "180+1"]
[Date "2021.06.29"]
[WhiteClock "0:00:17"]
[BlackClock "0:00:16"]

1. d4 {[%clk 0:03:00]}  Nf6 {[%clk 0:02:59]} 2. c4 {[%clk 0:03:01]}  g6 {[%clk 0:03:00]} 3. g3 {[%clk 0:03:00]}  c5 {[%clk 0:02:56]} 4. Nf3 {[%clk 0:02:59]}  Bg7 {[%clk 0:02:52]} 5. Bg2 {[%clk 0:02:57]}  O-O {[%clk 0:02:51]} 6. Nc3 {[%clk 0:02:55]}  cxd4 {[%clk 0:02:51]} 7. Nxd4 {[%clk 0:02:55]}  Nc6 {[%clk 0:02:52]} 8. O-O {[%clk 0:02:52]}  Qa5 {[%clk 0:02:52]} 9. e3 {[%clk 0:02:48]}  d6 {[%clk 0:02:49]} 10. Nde2 {[%clk 0:02:30]}  Be6 {[%clk 0:02:12]} 11. b3 {[%clk 0:02:28]}  d5 {[%clk 0:02:12]} 12. cxd5 {[%clk 0:02:15]}  Nxd5 {[%clk 0:02:12]} 13. Nxd5 {[%clk 0:01:52]}  Bxa1 {[%clk 0:02:07]} 14. Bd2 {[%clk 0:01:52]}  Qd8 {[%clk 0:01:52]} 15. Ndf4 {[%clk 0:01:51]}  Bg4 {[%clk 0:01:48]} 16. h3 {[%clk 0:01:29]}  Bxe2 {[%clk 0:01:45]} 17. Qxe2 {[%clk 0:01:30]}  Bg7 {[%clk 0:01:44]} 18. Rd1 {[%clk 0:01:30]}  Rc8 {[%clk 0:01:36]} 19. Be1 {[%clk 0:01:26]}  Qe8 {[%clk 0:01:32]} 20. Qb5 {[%clk 0:01:24]}  b6 {[%clk 0:01:22]} 21. Qa6 {[%clk 0:01:18]}  e6 {[%clk 0:01:17]} 22. Qb7 {[%clk 0:01:14]}  Be5 {[%clk 0:01:06]} 23. Nd3 {[%clk 0:01:02]}  Bd6 {[%clk 0:00:58]} 24. Bc3 {[%clk 0:00:44]}  Rc7 {[%clk 0:00:52]} 25. Bxc6 {[%clk 0:00:33]}  Qxc6 {[%clk 0:00:53]} 26. Qxc6 {[%clk 0:00:33]}  Rxc6 {[%clk 0:00:54]} 27. Bf6 {[%clk 0:00:34]}  Rfc8 {[%clk 0:00:50]} 28. Kg2 {[%clk 0:00:33]}  Kf8 {[%clk 0:00:47]} 29. g4 {[%clk 0:00:31]}  h6 {[%clk 0:00:45]} 30. h4 {[%clk 0:00:29]}  Be7 {[%clk 0:00:46]} 31. g5 {[%clk 0:00:28]}  hxg5 {[%clk 0:00:44]} 32. hxg5 {[%clk 0:00:28]}  Bxf6 {[%clk 0:00:41]} 33. gxf6 {[%clk 0:00:29]}  Rd6 {[%clk 0:00:35]} 34. Rh1 {[%clk 0:00:28]}  Kg8 {[%clk 0:00:32]} 35. Ne5 {[%clk 0:00:28]}  Rd5 {[%clk 0:00:21]} 36. f4 {[%clk 0:00:25]}  Rc2+ {[%clk 0:00:20]} 37. Kf3 {[%clk 0:00:25]}  b5 {[%clk 0:00:19]} 38. Ng4 {[%clk 0:00:22]}  Rh5 {[%clk 0:00:17]} 39. Rd1 {[%clk 0:00:21]}  Rd5 {[%clk 0:00:17]} 40. Rh1 {[%clk 0:00:19]}  Rh5 {[%clk 0:00:17]} 41. Rd1 {[%clk 0:00:18]}  Rd5 {[%clk 0:00:16]} 42. Rh1 {[%clk 0:00:17]} 1/2-1/2


[Site "https://www.chess.com"]

[Event "Titled Tuesday Blitz June 29 2021"]
[White "Duhless"]
[Black "VladDobrov"]
[WhiteElo "3064"]
[BlackElo "2786"]
[Result "1-0"]
[Round "04"]
[TimeControl "180+1"]
[Date "2021.06.29"]
[WhiteClock "0:00:02"]
[BlackClock "0:00:06"]

1. d4 {[%clk 0:03:00]}  Nf6 {[%clk 0:02:56]} 2. Nf3 {[%clk 0:03:00]}  e6 {[%clk 0:02:54]} 3. c4 {[%clk 0:02:59]}  Bb4+ {[%clk 0:02:40]} 4. Nbd2 {[%clk 0:02:57]}  O-O {[%clk 0:02:35]} 5. g3 {[%clk 0:02:55]}  b6 {[%clk 0:02:28]} 6. Bg2 {[%clk 0:02:55]}  Bb7 {[%clk 0:02:28]} 7. O-O {[%clk 0:02:55]}  d5 {[%clk 0:02:28]} 8. Ne5 {[%clk 0:02:55]}  Nbd7 {[%clk 0:02:26]} 9. Qa4 {[%clk 0:02:51]}  Bxd2 {[%clk 0:02:21]} 10. Bxd2 {[%clk 0:02:50]}  Nxe5 {[%clk 0:02:22]} 11. dxe5 {[%clk 0:02:49]}  Nd7 {[%clk 0:02:11]} 12. Bf4 {[%clk 0:02:34]}  a5 {[%clk 0:02:07]} 13. Rfd1 {[%clk 0:02:29]}  g5 {[%clk 0:01:55]} 14. Bxg5 {[%clk 0:02:20]}  Qxg5 {[%clk 0:01:50]} 15. Qxd7 {[%clk 0:02:20]}  Qxe5 {[%clk 0:01:50]} 16. cxd5 {[%clk 0:02:17]}  Rad8 {[%clk 0:01:49]} 17. Qb5 {[%clk 0:02:15]}  exd5 {[%clk 0:01:47]} 18. e4 {[%clk 0:02:00]}  Rfe8 {[%clk 0:00:59]} 19. exd5 {[%clk 0:01:58]}  Qe2 {[%clk 0:00:59]} 20. Qb3 {[%clk 0:01:30]}  Rd6 {[%clk 0:00:56]} 21. Bf3 {[%clk 0:01:21]}  Qe5 {[%clk 0:00:53]} 22. Rac1 {[%clk 0:01:19]}  Red8 {[%clk 0:00:38]} 23. Rxc7 {[%clk 0:00:55]}  Bxd5 {[%clk 0:00:36]} 24. Bxd5 {[%clk 0:00:54]}  Rxd5 {[%clk 0:00:37]} 25. Rxd5 {[%clk 0:00:52]}  Rxd5 {[%clk 0:00:37]} 26. Rc8+ {[%clk 0:00:46]}  Kg7 {[%clk 0:00:37]} 27. Qc3 {[%clk 0:00:46]}  Qxc3 {[%clk 0:00:29]} 28. Rxc3 {[%clk 0:00:45]}  b5 {[%clk 0:00:29]} 29. Rc2 {[%clk 0:00:33]}  h5 {[%clk 0:00:29]} 30. Kg2 {[%clk 0:00:31]}  Kg6 {[%clk 0:00:28]} 31. Rc6+ {[%clk 0:00:28]}  f6 {[%clk 0:00:28]} 32. Ra6 {[%clk 0:00:26]}  Rd2 {[%clk 0:00:28]} 33. Rxa5 {[%clk 0:00:15]}  Rxb2 {[%clk 0:00:28]} 34. a3 {[%clk 0:00:11]}  b4 {[%clk 0:00:20]} 35. a4 {[%clk 0:00:10]}  b3 {[%clk 0:00:18]} 36. Rb5 {[%clk 0:00:08]}  Ra2 {[%clk 0:00:19]} 37. Kh3 {[%clk 0:00:06]}  Rxa4 {[%clk 0:00:14]} 38. Rxb3 {[%clk 0:00:06]}  Ra2 {[%clk 0:00:15]} 39. Rf3 {[%clk 0:00:05]}  Rc2 {[%clk 0:00:14]} 40. Kh4 {[%clk 0:00:05]}  Rc4+ {[%clk 0:00:14]} 41. Rf4 {[%clk 0:00:05]}  Rc2 {[%clk 0:00:10]} 42. h3 {[%clk 0:00:05]}  Ra2 {[%clk 0:00:10]} 43. Rf3 {[%clk 0:00:03]}  Rb2 {[%clk 0:00:09]} 44. Rf4 {[%clk 0:00:03]}  Ra2 {[%clk 0:00:09]} 45. f3 {[%clk 0:00:03]}  Rh2 {[%clk 0:00:08]} 46. Ra4 {[%clk 0:00:03]}  Rf2 {[%clk 0:00:08]} 47. f4 {[%clk 0:00:03]}  Rf3 {[%clk 0:00:05]} 48. Ra5 {[%clk 0:00:03]}  Rd3 {[%clk 0:00:05]} 49. Rxh5 {[%clk 0:00:02]}  Rxg3 {[%clk 0:00:06]} 50. f5+ {[%clk 0:00:02]} 1-0


[Site "https://www.chess.com"]

[Event "Titled Tuesday Blitz June 29 2021"]
[White "GMKrikor"]
[Black "PowerThinking2650"]
[WhiteElo "2750"]
[BlackElo "2408"]
[Result "1/2-1/2"]
[Round "04"]
[TimeControl "180+1"]
[Date "2021.06.29"]
[WhiteClock "0:00:07"]
[BlackClock "0:00:19"]

1. e4 {[%clk 0:02:57]}  e5 {[%clk 0:02:59]} 2. Bc4 {[%clk 0:02:54]}  Nf6 {[%clk 0:02:58]} 3. d3 {[%clk 0:02:54]}  Nc6 {[%clk 0:02:58]} 4. Nc3 {[%clk 0:02:53]}  Na5 {[%clk 0:02:56]} 5. Qf3 {[%clk 0:02:53]}  Nxc4 {[%clk 0:02:55]} 6. dxc4 {[%clk 0:02:54]}  Bb4 {[%clk 0:02:54]} 7. Ne2 {[%clk 0:02:53]}  d6 {[%clk 0:02:53]} 8. O-O {[%clk 0:02:52]}  Bxc3 {[%clk 0:02:36]} 9. Nxc3 {[%clk 0:02:51]}  Be6 {[%clk 0:02:19]} 10. b3 {[%clk 0:02:49]}  Nd7 {[%clk 0:02:14]} 11. Qg3 {[%clk 0:02:43]}  O-O {[%clk 0:02:12]} 12. f4 {[%clk 0:02:29]}  f5 {[%clk 0:02:08]} 13. fxe5 {[%clk 0:02:24]}  Nxe5 {[%clk 0:02:04]} 14. Bf4 {[%clk 0:01:47]}  Ng6 {[%clk 0:01:54]} 15. Bg5 {[%clk 0:01:43]}  Qd7 {[%clk 0:01:52]} 16. Rae1 {[%clk 0:01:30]}  Rae8 {[%clk 0:01:35]} 17. h3 {[%clk 0:01:26]}  a6 {[%clk 0:01:32]} 18. a4 {[%clk 0:01:25]}  fxe4 {[%clk 0:01:17]} 19. Rxf8+ {[%clk 0:01:14]}  Rxf8 {[%clk 0:01:17]} 20. Rxe4 {[%clk 0:01:09]}  Bf5 {[%clk 0:01:14]} 21. Re2 {[%clk 0:01:04]}  Re8 {[%clk 0:00:51]} 22. Rxe8+ {[%clk 0:00:52]}  Qxe8 {[%clk 0:00:51]} 23. Qf2 {[%clk 0:00:52]}  Qe5 {[%clk 0:00:40]} 24. Bd2 {[%clk 0:00:37]}  Bxc2 {[%clk 0:00:30]} 25. Nd5 {[%clk 0:00:37]}  c6 {[%clk 0:00:24]} 26. Bc3 {[%clk 0:00:29]}  Qf5 {[%clk 0:00:20]} 27. Qxf5 {[%clk 0:00:21]}  Bxf5 {[%clk 0:00:21]} 28. Ne3 {[%clk 0:00:19]}  Be4 {[%clk 0:00:21]} 29. Ba5 {[%clk 0:00:10]}  d5 {[%clk 0:00:18]} 30. cxd5 {[%clk 0:00:10]}  Bxd5 {[%clk 0:00:19]} 31. b4 {[%clk 0:00:09]}  Ne5 {[%clk 0:00:18]} 32. b5 {[%clk 0:00:10]}  axb5 {[%clk 0:00:17]} 33. axb5 {[%clk 0:00:10]}  Nc4 {[%clk 0:00:17]} 34. Nxc4 {[%clk 0:00:09]}  Bxc4 {[%clk 0:00:17]} 35. bxc6 {[%clk 0:00:09]}  bxc6 {[%clk 0:00:18]} 36. Bb4 {[%clk 0:00:09]}  Kf7 {[%clk 0:00:18]} 37. Kf2 {[%clk 0:00:10]}  Ke6 {[%clk 0:00:19]} 38. Ke3 {[%clk 0:00:10]}  Kd5 {[%clk 0:00:17]} 39. g3 {[%clk 0:00:08]}  Bf1 {[%clk 0:00:17]} 40. h4 {[%clk 0:00:08]}  Kc4 {[%clk 0:00:16]} 41. Bf8 {[%clk 0:00:09]}  g6 {[%clk 0:00:16]} 42. Bg7 {[%clk 0:00:09]}  Kb3 {[%clk 0:00:16]} 43. Kd2 {[%clk 0:00:08]}  c5 {[%clk 0:00:16]} 44. Bf6 {[%clk 0:00:09]}  c4 {[%clk 0:00:17]} 45. Bg7 {[%clk 0:00:09]}  Bh3 {[%clk 0:00:17]} 46. Bf6 {[%clk 0:00:09]}  Bf5 {[%clk 0:00:17]} 47. Bg7 {[%clk 0:00:09]}  Kb4 {[%clk 0:00:17]} 48. Bf6 {[%clk 0:00:09]}  Kc5 {[%clk 0:00:17]} 49. Ke3 {[%clk 0:00:09]}  Kd5 {[%clk 0:00:17]} 50. Kf4 {[%clk 0:00:09]}  h5 {[%clk 0:00:17]} 51. Bg7 {[%clk 0:00:09]}  Bd3 {[%clk 0:00:16]} 52. Bh8 {[%clk 0:00:09]}  Kc5 {[%clk 0:00:16]} 53. Ke3 {[%clk 0:00:09]}  Kb4 {[%clk 0:00:17]} 54. Kd2 {[%clk 0:00:09]}  Kb3 {[%clk 0:00:17]} 55. Bg7 {[%clk 0:00:09]}  Bf5 {[%clk 0:00:18]} 56. Bf6 {[%clk 0:00:09]}  Kb4 {[%clk 0:00:18]} 57. Bg7 {[%clk 0:00:09]}  Kc5 {[%clk 0:00:18]} 58. Ke3 {[%clk 0:00:09]}  Kd5 {[%clk 0:00:19]} 59. Kf4 {[%clk 0:00:10]}  Ke6 {[%clk 0:00:18]} 60. Bc3 {[%clk 0:00:09]}  Bd3 {[%clk 0:00:18]} 61. Bd4 {[%clk 0:00:09]}  Kd5 {[%clk 0:00:18]} 62. Bc3 {[%clk 0:00:08]}  Kc5 {[%clk 0:00:18]} 63. Ke3 {[%clk 0:00:05]}  Kb5 {[%clk 0:00:18]} 64. Bf6 {[%clk 0:00:05]}  Ka4 {[%clk 0:00:18]} 65. Kd2 {[%clk 0:00:06]}  Kb3 {[%clk 0:00:19]} 66. Bg7 {[%clk 0:00:06]}  Bf5 {[%clk 0:00:19]} 67. Bf6 {[%clk 0:00:06]}  Bd3 {[%clk 0:00:19]} 68. Bg7 {[%clk 0:00:07]} 1/2-1/2


[Site "https://www.chess.com"]

[Event "Titled Tuesday Blitz June 29 2021"]
[White "GM_Crest"]
[Black "Isajevsky_Anton"]
[WhiteElo "2784"]
[BlackElo "2518"]
[Result "1-0"]
[Round "04"]
[TimeControl "180+1"]
[Date "2021.06.29"]
[WhiteClock "0:01:13"]
[BlackClock "0:00:11"]

1. d4 {[%clk 0:03:00]}  d5 {[%clk 0:02:56]} 2. c4 {[%clk 0:03:00]}  e6 {[%clk 0:02:56]} 3. Nc3 {[%clk 0:02:59]}  a6 {[%clk 0:02:55]} 4. cxd5 {[%clk 0:02:58]}  exd5 {[%clk 0:02:55]} 5. Nf3 {[%clk 0:02:59]}  h6 {[%clk 0:02:55]} 6. Bf4 {[%clk 0:02:58]}  Nf6 {[%clk 0:02:55]} 7. e3 {[%clk 0:02:58]}  Bd6 {[%clk 0:02:55]} 8. Bg3 {[%clk 0:02:44]}  O-O {[%clk 0:02:53]} 9. Bd3 {[%clk 0:02:43]}  Re8 {[%clk 0:02:49]} 10. Qc2 {[%clk 0:02:42]}  Nc6 {[%clk 0:02:48]} 11. a3 {[%clk 0:02:41]}  Bg4 {[%clk 0:02:44]} 12. O-O {[%clk 0:02:39]}  Bxf3 {[%clk 0:02:31]} 13. gxf3 {[%clk 0:02:37]}  Bxg3 {[%clk 0:02:05]} 14. hxg3 {[%clk 0:02:36]}  Ne7 {[%clk 0:02:02]} 15. Kg2 {[%clk 0:02:35]}  h5 {[%clk 0:01:46]} 16. b4 {[%clk 0:02:34]}  Nc8 {[%clk 0:01:42]} 17. a4 {[%clk 0:02:27]}  Nd6 {[%clk 0:01:39]} 18. b5 {[%clk 0:02:27]}  axb5 {[%clk 0:01:21]} 19. axb5 {[%clk 0:02:28]}  Qd7 {[%clk 0:01:17]} 20. Qb3 {[%clk 0:02:14]}  Qe6 {[%clk 0:01:07]} 21. Rh1 {[%clk 0:02:10]}  g6 {[%clk 0:01:05]} 22. Qc2 {[%clk 0:02:08]}  Kg7 {[%clk 0:01:05]} 23. Ne2 {[%clk 0:02:08]}  Qd7 {[%clk 0:01:03]} 24. Nf4 {[%clk 0:02:07]}  Rxa1 {[%clk 0:00:50]} 25. Rxa1 {[%clk 0:02:05]}  g5 {[%clk 0:00:28]} 26. Ne2 {[%clk 0:02:04]}  g4 {[%clk 0:00:27]} 27. Nf4 {[%clk 0:02:01]}  gxf3+ {[%clk 0:00:27]} 28. Kxf3 {[%clk 0:01:56]}  Nde4 {[%clk 0:00:26]} 29. Rh1 {[%clk 0:01:48]}  Rh8 {[%clk 0:00:16]} 30. Kg2 {[%clk 0:01:47]}  h4 {[%clk 0:00:14]} 31. gxh4 {[%clk 0:01:35]}  Qg4+ {[%clk 0:00:13]} 32. Kf1 {[%clk 0:01:35]}  Qf3 {[%clk 0:00:11]} 33. Rg1+ {[%clk 0:01:32]}  Kf8 {[%clk 0:00:11]} 34. Qe2 {[%clk 0:01:31]}  Qxe2+ {[%clk 0:00:10]} 35. Kxe2 {[%clk 0:01:30]}  Rxh4 {[%clk 0:00:11]} 36. Rc1 {[%clk 0:01:13]}  Rh2 {[%clk 0:00:11]} 37. Bxe4 {[%clk 0:01:13]}  Nxe4 {[%clk 0:00:11]} 38. Nd3 {[%clk 0:01:13]} 1-0


[Site "https://www.chess.com"]